Cogmind - Beta 13 X1 @@@ ROGUE MODE // 2023.10.16 @ 18:14:29 Player: f3-rnm Result: Destroyed by 99-TNT with 99-TNT's Nukerbomber Performance ------------- Evolutions (3) 1500 Regions Visited (13) 2600 Robots Destroyed (233) 1165 Value Destroyed (8545) 8545 Prototype IDs (5) 100 Alien Tech Used (0) 0 Bonus (2237) 2237 TOTAL SCORE: 16147 Bonus ------- High Alert Combat Kills 1458 Follower Combat Kills 192 Entered Garrisons 600 Used RIF Installer 1000 Friendly Fire -1013 Cogmind --------- Core Integrity 0/700 Matter 34/300 Energy 100/100 System Corruption 3% Temperature Cool (0) Movement Core (1500) Ox29 Location -7/Zion Parts ------- > --- POWER (1) -------- (None) > --- PROPULSION (4) --- (None) > --- UTILITY (5) ------ Improved Cooling System Huge Storage Unit Relay Coupler [Swarmer] (28) > --- WEAPON (3) ------- Cooled Plasma Cannon > --- INVENTORY (25) --- Carbon-fiber Leg Carbon-fiber Leg Improved Titanium Leg Advanced Cooling System Huge Storage Unit High-capacity Battery (49) Large Matter Pod (150) Structural Scanner Machine Analyzer Kinecellerator Hardened Light Armor Plating Improved Light Armor Plating Hacking Suite Relay Coupler [Grunt] (24) Relay Coupler [Behemoth] (10) Plasma Cannon Slug Cannon Heavy Rocket Launcher Heavy Rocket Launcher Remote Datajack Heavy Mace Ripper Peak State ------------ > --- POWER ------------ Light Nuclear Core > --- PROPULSION ------- Carbon-fiber Leg Carbon-fiber Leg Carbon-fiber Leg Improved Carbon-fiber Leg > --- UTILITY ---------- Advanced Heat Sink Advanced Heat Sink Huge Storage Unit Kinecellerator Hardened Light Armor Plating > --- WEAPON ----------- Cooled Plasma Cannon High-powered Shotgun Heavy Flak Cannon > --- INVENTORY -------- Carbon-fiber Leg Carbon-fiber Leg Improved Heat Sink Advanced Cooling System Huge Storage Unit High-capacity Battery Large Matter Pod Structural Scanner Machine Analyzer Energy Filter Improved Light Armor Plating Improved Light Armor Plating Hacking Suite Relay Coupler [Swarmer] Relay Coupler [Grunt] Relay Coupler [Grunt] Relay Coupler [Sentry] Relay Coupler [Behemoth] Heavy Flak Cannon Enhanced Gauss Cannon Rocket Launcher Missile Launcher Remote Datajack Lance [Rating: 55] Favorites ----------- Power Heavy Ion Engine Engine Heavy Ion Engine Power Core Micro Nuclear Core Propulsion Light Treads Treads Light Treads Leg Carbon-fiber Leg Wheel Armored Wheel Utility Huge Storage Unit Device Advanced Heat Sink Storage Huge Storage Unit Processor Transport Network Coupler Hackware Relay Coupler [Swarmer] Protection Hardened Light Armor Plating Weapon Autogun Energy Gun Gatling Laser Energy Cannon Advanced Beam Cannon Ballistic Gun Autogun Ballistic Cannon Heavy Flak Cannon Launcher Missile Launcher Special Weapon Remote Datajack Piercing Weapon Lance Build | -11 -10 -9 -9 -9 -8 -8 -8 -7 -7 -7 -7 -7 -7 ------- Run | Jun Mat Mat Sto Gar Mat Gar Mat Fac Gar Fac Low Low Zio Slots Evolved 6 | . . 2 . . 2 . . 2 . . . . . Power . | . . . . . . . . . . . . . . Propulsion 2 | . . . . . 2 . . . . . . . . Utility 3 | . . 1 . . . . . 2 . . . . . Weapon 1 | . . 1 . . . . . . . . . . . Parts Attached 146 | 6 9 7 35 9 4 13 4 6 16 5 7 21 4 Power 10 | 1 . 1 3 . . 1 . . 2 1 . . 1 Engine 7 | 1 . 1 3 . . 1 . . 1 . . . . Core 3 | . . . . . . . . . 1 1 . . 1 Reactor . | . . . . . . . . . . . . . . Propulsion 34 | 2 . 2 9 1 3 4 1 . 4 1 2 5 . Treads 25 | 2 . 2 9 1 3 4 1 . . . . 3 . Leg 8 | . . . . . . . . . 4 1 2 1 . Wheel 1 | . . . . . . . . . . . . 1 . Hover . | . . . . . . . . . . . . . . Flight . | . . . . . . . . . . . . . . Utility 34 | 1 3 1 5 3 1 1 . 3 5 1 2 7 1 Device 15 | . . 1 1 2 . . . 1 4 1 1 3 1 Storage 3 | 1 2 . . . . . . . . . . . . Processor 4 | . 1 . 2 . . . . 1 . . . . . Hackware 1 | . . . . . . . . . . . . 1 . Protection 11 | . . . 2 1 1 1 . 1 1 . 1 3 . Artifact . | . . . . . . . . . . . . . . Weapon 68 | 2 6 3 18 5 . 7 3 3 5 2 3 9 2 Energy Gun 6 | 1 . . 1 . . 2 1 . 1 . . . . Energy Cannon 13 | . . . 3 1 . 3 . . 1 . . 3 2 Ballistic Gun 22 | 1 2 2 12 2 . . . 1 . . . 2 . Ballistic Cannon 12 | . 1 . . 2 . 1 . 2 1 2 1 2 . Launcher 12 | . 3 1 2 . . . 2 . 1 . 1 2 . Special Weapon 2 | . . . . . . 1 . . . . 1 . . Impact Weapon . | . . . . . . . . . . . . . . Slashing Weapon . | . . . . . . . . . . . . . . Piercing Weapon 1 | . . . . . . . . . 1 . . . . Special Melee Weapon . | . . . . . . . . . . . . . . Unidentified Prototypes 5 | . . . 5 . . . . . . . . . . Parts Lost 39 | . 1 2 3 2 1 2 4 . 7 1 3 1 12 Power 6 | . . 1 1 . . . . . 2 . . . 2 Propulsion 14 | . 1 . . 1 1 1 2 . 3 . 1 . 4 Utility 10 | . . . 2 1 . 1 1 . 1 . 2 . 2 Weapon 9 | . . 1 . . . . 1 . 1 1 . 1 4 Highest Loss Streak 12 | . 1 1 1 1 1 1 4 . 3 1 2 1 12 To Critical Strikes . | . . . . . . . . . . . . . . Average Slot Usage (%) 95 | . 91 91 99 99 99 99 91 75 79 99 96 99 93 Engine 6 | . 14 10 11 11 9 9 9 7 6 . . . . Core 2 | . . . . . . . . . . 7 7 7 6 Treads 15 | . 22 17 21 22 35 36 33 23 8 . . 1 21 Leg 9 | . . . . . . . . . 6 30 29 24 . Device 12 | . . 8 7 10 9 9 9 9 18 23 21 18 14 Storage 9 | . 14 11 11 11 9 9 9 7 7 7 7 7 7 Processor 2 | . 11 11 7 . . . . 2 . . . . . Protection 6 | . . . 7 10 9 8 6 2 7 7 4 7 5 Energy Gun 2 | . 14 6 . . . 4 9 4 2 . . . . Energy Cannon 1 | . . . 1 1 . 7 5 . . . . 1 7 Ballistic Gun 12 | . 6 13 31 21 9 4 . 5 7 5 . 6 6 Ballistic Cannon 8 | . 5 11 . 10 18 6 . 5 8 16 17 7 6 Special Weapon 1 | . . . . . . 4 6 . . . 3 6 . Naked Turns . | . . . . . . . . . . . . . . Heaviest Build 119 | 13 90 96 104 109 112 112 105 116 117 119 119 119 117 Greatest Support 83 | 40 40 43 46 46 83 80 80 60 63 63 68 68 62 Greatest Overweight (x) 37 | . 4 4 2 2 1 1 2 1 37 1 1 9 4 Average Overweight (x) 2 | . . 2 2 2 1 1 1 1 2 1 1 4 1 Largest Inventory Capacity 25 | 8 25 25 25 25 25 25 25 25 25 25 25 25 25 Average Capacity 24 | 5 10 25 25 25 25 25 25 25 25 25 25 25 25 Most Carried 25 | 5 19 21 25 25 25 25 25 25 25 25 25 25 25 Average Carried 23 | 2 9 19 24 24 24 24 25 24 24 24 24 24 24 Final Capacity 25 | 8 25 25 25 25 25 25 25 25 25 25 25 25 25 Final Carried 25 | 2 19 21 25 25 25 25 25 25 24 25 25 25 22 Class Distribution -------------------- 32% | Scavenger-Mutant 17% | Scavenger-Tank 16% | Tank 10% | Gunner 8% | Mutant 6% | Skirmisher Dominant Class ---------------- Mutant | -10/Materials Skirmisher | -9/Materials Gunner | -9/Storage Tank | -9/Garrison Scavenger-Tank | -8/Materials Scavenger-Mutant | -8/Garrison Scavenger-Mutant | -8/Materials Scavenger-Gunner | -7/Factory Bothacker-Tank | -7/Garrison Scavenger-Tank | -7/Factory Scavenger-Mutant | -7/Lower Caves Scavenger-Mutant | -7/Lower Caves Scavenger-Mutant | -7/Zion Resources | -11 -10 -9 -9 -9 -8 -8 -8 -7 -7 -7 -7 -7 -7 ----------- Run | Jun Mat Mat Sto Gar Mat Gar Mat Fac Gar Fac Low Low Zio Matter Collected 6977 | 213 362 458 1404 796 471 518 164 21 688 403 909 446 124 Remotely . | . . . . . . . . . . . . . . Salvage Created 7326 | . 406 536 1748 941 592 642 513 46 695 402 307 329 169 Parts 418 | . 27 32 98 71 23 33 30 7 43 23 13 13 5 Haulers Intercepted 13 | . 2 2 6 . 1 . 2 . . . . . . Recyclers Shooed 7 | . 6 . . . . . . . . 1 . . . Parts Field Recycled . | . . . . . . . . . . . . . . Retrieved Matter . | . . . . . . . . . . . . . . Parts Self-Destructed 36 | . . . . . . . . . . . 18 18 . Prevented . | . . . . . . . . . . . . . . Kills | -11 -10 -9 -9 -9 -8 -8 -8 -7 -7 -7 -7 -7 -7 ------- Run | Jun Mat Mat Sto Gar Mat Gar Mat Fac Gar Fac Low Low Zio Combat Hostiles Destroyed 175 | . 10 10 28 31 13 16 16 4 21 6 11 7 2 Melee 3 | . . . . . . . . . 3 . . . . Guns 69 | . 2 6 23 20 4 3 4 2 4 . . 1 . Cannons 67 | . . 3 2 11 8 13 3 . 12 6 7 1 1 AOE 34 | . 8 1 3 . 1 . 8 2 2 . 4 5 . Classes Destroyed 21 | . 7 3 . 2 . 1 2 . 1 1 1 1 2 Worker 14 | . 3 1 7 . 1 . 1 . . 1 . . . Builder 6 | . . 3 . . . . 2 . . 1 . . . Tunneler 1 | . . . . . . . . . . 1 . . . Hauler 13 | . 2 2 6 . 1 . 2 . . . . . . Recycler 6 | . 2 . . . . . 1 . . 3 . . . Mechanic 3 | . 1 1 1 . . . . . . . . . . Operator 2 | . . 1 . . 1 . . . . . . . . Watcher 8 | . 3 2 2 1 . . . . . . . . . Swarmer 48 | . 9 . 3 14 . 1 5 4 6 . 4 2 . Grunt 68 | . 1 9 14 10 11 6 4 . 6 3 4 . . Brawler 6 | . . . . 2 1 1 . . . 1 1 . . Duelist 7 | . . . . 2 1 1 3 . . . . . . Protector 1 | . . . . . . . 1 . . . . . . Sentry 25 | . . 1 11 3 . 4 2 . 2 1 . 1 . Specialist 3 | . . . . . . . . . 3 . . . . Hunter 5 | . . . . . . . 1 . 4 . . . . Programmer 5 | . . . . . . 3 . . . 1 1 . . Zionite 1 | . . . . . . . . . . . . . 1 Decomposer 1 | . . . . . . . . . . . 1 . . Thug 2 | . . . . . . . . . . . . 2 . Savage 2 | . . . . . . . . . . . . 1 1 Marauder 2 | . . . . . . . . . . . . . 2 Fireman 4 | . . . . . . . . . . . . 3 1 Mutant 1 | . . . . . . . . . . . 1 . . Best Kill Streak 11 | . 5 3 7 4 7 5 11 4 3 4 4 4 2 Combat Bots Only 10 | . 3 3 5 4 6 5 10 4 3 3 4 4 1 Max Kills in Single Turn 3 | . 3 2 3 2 1 1 3 2 1 2 3 2 1 Gunslinging 1 | . . . . 1 . . . . . . . . . Exploded 3 | . 3 1 3 . 1 . 2 1 1 . 3 2 . Melee 1 | . . . . . . . . . 1 . . . . Uniques/NPCs Destroyed . | . . . . . . . . . . . . . . Combat | -11 -10 -9 -9 -9 -8 -8 -8 -7 -7 -7 -7 -7 -7 -------- Run | Jun Mat Mat Sto Gar Mat Gar Mat Fac Gar Fac Low Low Zio Damage Taken 9043 | . 386 473 1141 841 682 417 777 77 1073 309 616 450 1801 Core 1200 | . 86 22 155 85 48 55 27 13 262 37 80 43 287 Absorbed by Shields 159 | . . . . . . . . . 159 . . . . Regen/Repaired (Parts) 310 | . . 113 62 . 135 . . . . . . . . Core Remaining (%) 68 | 100 65 . . 34 . . 76 . . . . . . Volleys Fired 538 | 1 46 45 90 67 26 49 36 3 43 25 35 25 47 Largest 3 | 2 2 3 3 3 3 3 2 3 3 3 3 3 3 Hottest 195 | 70 85 115 114 114 111 148 160 141 158 163 163 195 165 Shots Fired 1329 | 2 89 130 260 195 78 122 64 7 93 68 77 53 91 Gun 748 | 2 77 80 246 152 26 45 32 5 38 16 . 12 17 Cannon 528 | . 1 45 11 43 52 77 21 . 51 52 68 33 74 Launcher 43 | . 11 5 3 . . . 11 2 4 . 2 5 . Special 10 | . . . . . . . . . . . 7 3 . Kinetic 1007 | 1 35 102 254 184 78 62 . 2 76 68 68 32 45 Thermal 269 | 1 43 23 3 11 . 60 53 3 13 . . 13 46 Explosive 43 | . 11 5 3 . . . 11 2 4 . 2 5 . Electromagnetic . | . . . . . . . . . . . . . . Robot Hit Streak 29 | . 7 7 29 19 7 8 22 3 6 14 9 11 19 Robot Miss Streak 13 | . 4 7 3 9 6 4 4 2 7 9 13 7 2 Penetration Max 1 | . . . . . . . . . . . . 1 . Secondary Targets 6 | . . . 3 3 . . . . . . . . . Max Gunslinging Chain 1 | . . . 1 1 . . . . . . . . . Shots Hit Robots 807 | . 46 73 164 101 49 56 50 3 66 49 56 19 75 Core Hits 524 | . 33 27 61 57 64 47 39 7 58 43 47 26 15 Critical Kills 2 | . . . 1 . . . . . . . . . 1 Critical Parts Destroyed 2 | . . . 2 . . . . . . . . . . Critical Strikes 10 | . . 1 3 . . . . . 1 . 2 . 3 Meltdown 1 | . . . . . . . . . . . . . 1 Destroy 3 | . . . 3 . . . . . . . . . . Blast 5 | . . 1 . . . . . . . . 2 . 2 Impale 1 | . . . . . . . . . 1 . . . . Melee Attacks 12 | . . . . . . . . . 12 . . . . Impact . | . . . . . . . . . . . . . . Slashing . | . . . . . . . . . . . . . . Piercing 12 | . . . . . . . . . 12 . . . . Sneak Attacks 6 | . . . . . . . . . 6 . . . . Combat Hostiles . | . . . . . . . . . . . . . . Follow-up Attacks . | . . . . . . . . . . . . . . Damage Inflicted 18734 | . 1079 1277 2940 1632 1097 1317 2120 254 1844 894 1410 913 1957 Guns 7941 | . 442 752 2718 1336 266 388 731 48 491 281 . 200 288 Cannons 6843 | . . 382 91 296 691 929 298 . 516 613 1152 206 1669 Explosions 3503 | . 637 130 131 . 127 . 1091 206 416 . 258 507 . Melee 421 | . . . . . . . . . 421 . . . . Ramming 26 | . . 13 . . 13 . . . . . . . . Kinetic 11459 | . 163 898 2786 1591 957 667 . 16 889 894 1152 406 1040 Thermal 3452 | . 279 236 23 41 127 650 1029 32 118 . . . 917 Explosive 3376 | . 637 130 131 . . . 1091 206 416 . 258 507 . Electromagnetic . | . . . . . . . . . . . . . . Impact . | . . . . . . . . . . . . . . Slashing . | . . . . . . . . . . . . . . Piercing 421 | . . . . . . . . . 421 . . . . Highest Corruption 5 | . . . . . . 5 5 . 1 3 3 3 3 Average Corruption 3 | . . . . . . 4 5 . 1 1 3 3 3 Corruption Purged . | . . . . . . . . . . . . . . Corruption Blocked . | . . . . . . . . . . . . . . Effects 150 | . . . . . . 17 14 . . 7 41 62 9 Message Errors 32 | . . . . . . 2 6 . . 1 8 13 2 Matter Fused 34 | . . . . . . 6 3 . . 1 9 13 2 Heat Flow Errors 22 | . . . . . . 2 2 . . 2 6 9 1 Energy Discharges 14 | . . . . . . 2 1 . . 2 4 5 . Parts Rejected 2 | . . . . . . . . . . . . 2 . Parts Fused 2 | . . . . . . . . . . . . 1 1 Data Loss (minor) 18 | . . . . . . 2 2 . . 1 5 7 1 Data Loss (major) 12 | . . . . . . 1 . . . . 7 4 . Misfires 6 | . . . . . . 2 . . . . 1 3 . Alerts 6 | . . . . . . . . . . . 1 4 1 Weapon Failures 2 | . . . . . . . . . . . . 1 1 Overload Shots 4 | . . . . . . . . . 4 . . . . Overflow Damage 293 | . 47 23 8 . . . 3 43 44 . 5 102 18 Projectiles 36 | . . 13 . . . . . . . . 5 . 18 Explosions 213 | . 47 10 8 . . . 3 43 . . . 102 . Melee 44 | . . . . . . . . . 44 . . . . Knockbacks 57 | . . 1 1 9 13 9 . . 4 8 9 2 1 Impact . | . . . . . . . . . . . . . . Kinetic 51 | . . 1 1 8 11 8 . . 3 8 8 2 1 Secondary 6 | . . . . 1 2 1 . . 1 . 1 . . Self-Inflicted Damage 488 | . 115 16 40 . 88 . 97 . . . 63 69 . Shots 16 | . 5 1 1 . 1 . 4 . . . 1 3 . Rammed 1 | . . . . . 1 . . . . . . . . Targets Rammed 2 | . . 1 . . 1 . . . . . . . . Kicked . | . . . . . . . . . . . . . . Crushed 1 | . . 1 . . . . . . . . . . . Highest Temperature 345 | 30 90 48 121 345 126 255 248 15 30 219 247 232 35 Average Temperature 52 | 18 30 19 23 55 43 65 78 8 13 126 98 88 35 Received Heat Transfer 2127 | . 6 231 459 156 315 117 261 . 127 102 208 91 54 Siege Activations . | . . . . . . . . . . . . . . Robots Corrupted . | . . . . . . . . . . . . . . Combat Hostiles . | . . . . . . . . . . . . . . Parts Fried . | . . . . . . . . . . . . . . Impact Corruptions . | . . . . . . . . . . . . . . Robots Melted 4 | . . . . . . . 2 . . . . . 2 Combat Hostiles 2 | . . . . . . . 1 . . . . . 1 Parts Melted 7 | . 1 . . . . 1 5 . . . . . . Heat Transferred 7436 | . 814 703 37 74 100 1090 2118 75 275 . . . 2150 Parts Sabotaged . | . . . . . . . . . . . . . . Parts Stolen . | . . . . . . . . . . . . . . Parts Stripped . | . . . . . . . . . . . . . . Power Chain Reactions . | . . . . . . . . . . . . . . Missiles Intercepted . | . . . . . . . . . . . . . . Alert | -11 -10 -9 -9 -9 -8 -8 -8 -7 -7 -7 -7 -7 -7 ------- Run | Jun Mat Mat Sto Gar Mat Gar Mat Fac Gar Fac Low Low Zio Peak Influence 1338 | . 287 216 375 1338 895 1302 927 517 965 562 . . . Initial 651 | . . 38 . 198 651 577 634 421 361 501 . . . Average 469 | . 148 81 226 692 685 984 728 468 723 457 . . . Maximum Alert Level 4 | . 1 1 1 4 3 4 3 2 3 2 . . . Low Security (%) 26 | 100 55 98 43 3 . . . . . . . . . Level 1 23 | . 44 1 56 11 . . . . 3 35 . . . Level 2 22 | . . . . 35 52 15 53 100 29 64 . . . Level 3 22 | . . . . 41 47 42 46 . 67 . . . . Level 4 5 | . . . . 8 . 41 . . . . . . . Level 5 . | . . . . . . . . . . . . . . High Security . | . . . . . . . . . . . . . . Max Security . | . . . . . . . . . . . . . . Squads Dispatched 15 | . . 1 7 . 3 . 2 . . 2 . . . Investigation 2 | . . . 2 . . . . . . . . . . Extermination 1 | . . . . . . . . . . 1 . . . Reinforcement 6 | . . 1 2 . 1 . 1 . . 1 . . . Assault 2 | . . . . . 1 . 1 . . . . . . Garrison 4 | . . . 3 . 1 . . . . . . . . Intercept . | . . . . . . . . . . . . . . Searches Triggered . | . . . . . . . . . . . . . . Construction Impeded . | . . . . . . . . . . . . . . Haulers Reinforced . | . . . . . . . . . . . . . . Active Scanning Responses . | . . . . . . . . . . . . . . Cargo Convoy Interrupts . | . . . . . . . . . . . . . . Stealth | -11 -10 -9 -9 -9 -8 -8 -8 -7 -7 -7 -7 -7 -7 --------- Run | Jun Mat Mat Sto Gar Mat Gar Mat Fac Gar Fac Low Low Zio Distress Signals 3 | . 2 . 1 . . . . . . . . . . Communications Jammed . | . . . . . . . . . . . . . . Distress Signals . | . . . . . . . . . . . . . . Times Spotted 222 | . 18 15 35 34 23 19 18 4 17 8 13 12 6 Peak Tracking Total 6 | . 4 4 4 4 6 4 6 4 3 2 4 4 3 Tactical Retreats 3 | . . 1 1 1 . . . . . . . . . Traps | -11 -10 -9 -9 -9 -8 -8 -8 -7 -7 -7 -7 -7 -7 ------- Run | Jun Mat Mat Sto Gar Mat Gar Mat Fac Gar Fac Low Low Zio Traps Triggered 12 | . . . 2 4 . 2 . . 3 1 . . . Indirectly . | . . . . . . . . . . . . . . Trap Hack Attempts . | . . . . . . . . . . . . . . Triggered . | . . . . . . . . . . . . . . Disarmed . | . . . . . . . . . . . . . . Reprogrammed . | . . . . . . . . . . . . . . Reused . | . . . . . . . . . . . . . . Traps Extracted . | . . . . . . . . . . . . . . Installed . | . . . . . . . . . . . . . . Triggered . | . . . . . . . . . . . . . . Machines | -11 -10 -9 -9 -9 -8 -8 -8 -7 -7 -7 -7 -7 -7 ---------- Run | Jun Mat Mat Sto Gar Mat Gar Mat Fac Gar Fac Low Low Zio Machines Disabled 21 | . 5 1 2 4 2 4 1 . 1 . 1 . . Max in Single Turn 2 | . 1 1 1 1 2 1 1 . 1 . 1 . . Garrison Relay 8 | . . . . 4 . 3 . . 1 . . . . Machines Repaired . | . . . . . . . . . . . . . . Machines Sabotaged . | . . . . . . . . . . . . . . Overloaded Fab Kills . | . . . . . . . . . . . . . . Hacking | -11 -10 -9 -9 -9 -8 -8 -8 -7 -7 -7 -7 -7 -7 --------- Run | Jun Mat Mat Sto Gar Mat Gar Mat Fac Gar Fac Low Low Zio Machines Accessed 29 | . 1 3 11 2 4 3 . 1 1 2 . 1 . Terminals 19 | . . 2 8 2 2 3 . . 1 1 . . . Fabricators 1 | . . . . . . . . . . 1 . . . Repair Stations 4 | . . 1 2 . 1 . . . . . . . . Recycling Units 1 | . 1 . . . . . . . . . . . . Scanalyzers . | . . . . . . . . . . . . . . Garrison Access 3 | . . . 1 . 1 . . 1 . . . . . Total Hacks 50 | . 1 6 18 5 8 5 . 1 2 3 . 1 . Successful 29 | . 1 5 11 . 5 3 . 1 . 2 . 1 . Failed 20 | . . 1 7 5 2 2 . . 2 1 . . . Catastrophic 3 | . . . 1 2 . . . . . . . . . Database Lockouts 1 | . . . . . 1 . . . . . . . . Manual 15 | . . 4 4 . 5 . . . . 2 . . . Terminals 34 | . . 4 11 5 5 5 . . 2 2 . . . Fabricators 1 | . . . . . . . . . . 1 . . . Repair Stations 10 | . . 2 6 . 2 . . . . . . . . Recycling Units 1 | . 1 . . . . . . . . . . . . Scanalyzers . | . . . . . . . . . . . . . . Garrison Access 3 | . . . 1 . 1 . . 1 . . . . . Terminal Hacks 14 | . . 3 4 . 2 3 . . . 1 . 1 . Robot Analysis 2 | . . 1 . . 1 . . . . . . . . Open Door 6 | . . . 4 . . 1 . . . . . 1 . Branch Access Points 2 | . . 1 . . . . . . . 1 . . . Emergency Access Points 1 | . . . . . . 1 . . . . . . . Terminal Index 2 | . . 1 . . 1 . . . . . . . . Garrison Registry 1 | . . . . . . 1 . . . . . . . Fabricator Hacks 1 | . . . . . . . . . . 1 . . . Network Status 1 | . . . . . . . . . . 1 . . . Repair Station Hacks 7 | . . 2 3 . 2 . . . . . . . . Scan Component 4 | . . 1 2 . 1 . . . . . . . . Repair 3 | . . 1 1 . 1 . . . . . . . . Recycling Unit Hacks 1 | . 1 . . . . . . . . . . . . Retrieve Components 1 | . 1 . . . . . . . . . . . . Scanalyzer . | . . . . . . . . . . . . . . Garrison Access Hacks 3 | . . . 1 . 1 . . 1 . . . . . Unlock Access 3 | . . . 1 . 1 . . 1 . . . . . Unauthorized Hacks 3 | . . . 3 . . . . . . . . . . Terminals 3 | . . . 3 . . . . . . . . . . Botnet 3 | . . . 3 . . . . . . . . . . Fabricators . | . . . . . . . . . . . . . . Repair Stations . | . . . . . . . . . . . . . . Recycling Units . | . . . . . . . . . . . . . . Scanalyzers . | . . . . . . . . . . . . . . Garrison Access . | . . . . . . . . . . . . . . Data Cores Recovered 1 | . . . . . 1 . . . . . . . . Used . | . . . . . . . . . . . . . . Hacking Detections 18 | . 1 2 4 2 3 2 . 1 1 2 . . . Full Trace Events 4 | . . . 2 1 . . . . 1 . . . . Feedback Events . | . . . . . . . . . . . . . . Feedback Blocked . | . . . . . . . . . . . . . . Robot Schematics Acquired . | . . . . . . . . . . . . . . Robots Built . | . . . . . . . . . . . . . . Authchips . | . . . . . . . . . . . . . . Time . | . . . . . . . . . . . . . . Total Robot Build Rating . | . . . . . . . . . . . . . . Part Schematics Acquired . | . . . . . . . . . . . . . . Parts Built . | . . . . . . . . . . . . . . Authchips . | . . . . . . . . . . . . . . Time . | . . . . . . . . . . . . . . Total Part Build Rating . | . . . . . . . . . . . . . . Parts Repaired 3 | . . 1 1 . 1 . . . . . . . . Time 78 | . . 26 26 . 26 . . . . . . . . Parts Recycled . | . . . . . . . . . . . . . . Recycled Matter . | . . . . . . . . . . . . . . Retrieved Matter . | . . . . . . . . . . . . . . Retrieved Components 10 | . 10 . . . . . . . . . . . . Parts Scanalyzed . | . . . . . . . . . . . . . . Part Schematics Acquired . | . . . . . . . . . . . . . . Parts Damaged . | . . . . . . . . . . . . . . Bothacking | -11 -10 -9 -9 -9 -8 -8 -8 -7 -7 -7 -7 -7 -7 ------------ Run | Jun Mat Mat Sto Gar Mat Gar Mat Fac Gar Fac Low Low Zio Used RIF Installer 2 | . . . . . . 1 . . 1 . . . . Structural Interface 1 | . . . . . . . . . 1 . . . . Robots Hacked 1 | . . . . . . . . . . . . 1 . Non-combat . | . . . . . . . . . . . . . . Combat 1 | . . . . . . . . . . . . 1 . Robot Hacks Applied 1 | . . . . . . . . . . . . 1 . amplify_resonance 1 | . . . . . . . . . . . . 1 . Relay Couplers Released 34 | . . . . 16 . 13 . . 5 . . . . Machine Destruction 34 | . . . . 16 . 13 . . 5 . . . . Attached 1 | . . . . . . . . . . . . 1 . Fabnet Peak Effective % . | . . . . . . . . . . . . . . Robots Rewired 4 | . . . . . . . . . . . 4 . . Allies Hacked . | . . . . . . . . . . . . . . Hacks Repelled . | . . . . . . . . . . . . . . Allies | -11 -10 -9 -9 -9 -8 -8 -8 -7 -7 -7 -7 -7 -7 -------- Run | Jun Mat Mat Sto Gar Mat Gar Mat Fac Gar Fac Low Low Zio Total Allies 8 | . . . . . . 2 . . . . 4 . 2 Largest Group 4 | . . . . . . 2 . . . . 4 3 2 Highest-Rated Group 106 | . . . . . . 62 . . . . 106 81 48 Highest-Rated Ally 31 | . . . . . . 31 . . . . 31 31 28 Total Orders . | . . . . . . . . . . . . . . Ally Attacks 56 | . . . . . . 29 . . . . 13 14 . Total Damage 812 | . . . . . . 331 . . . . 270 211 . Kills 9 | . . . . . . 4 . . . . 2 3 . Allies Corrupted . | . . . . . . . . . . . . . . Allies Melted 2 | . . . . . . . . . . . . 1 1 Intel | -11 -10 -9 -9 -9 -8 -8 -8 -7 -7 -7 -7 -7 -7 ------- Run | Jun Mat Mat Sto Gar Mat Gar Mat Fac Gar Fac Low Low Zio Robot Analysis Total 2 | . . 1 . . 1 . . . . . . . . Derelict Logs Recovered 2 | . . . . . . . . . . . 2 . . Drone Launches . | . . . . . . . . . . . . . . Drone Recoveries . | . . . . . . . . . . . . . . Exploration | -11 -10 -9 -9 -9 -8 -8 -8 -7 -7 -7 -7 -7 -7 ------------- Run | Jun Mat Mat Sto Gar Mat Gar Mat Fac Gar Fac Low Low Zio Turns Passed 19319 | 85 984 1290 3944 1855 788 1347 700 354 1463 887 2387 2810 425 Spaces Moved 6925 | 46 482 283 1107 511 283 483 244 138 340 396 1181 1311 120 Core 6 | 4 . . . . . . . . 2 . . . . Treads 3961 | 42 482 283 1107 511 283 483 244 138 205 . . 63 120 Legs 2222 | . . . . . . . . . 133 396 1181 512 . Wheels 736 | . . . . . . . . . . . . 736 . Hover . | . . . . . . . . . . . . . . Flight . | . . . . . . . . . . . . . . Fastest Speed 50 | 50 160 320 320 320 240 240 240 240 190 190 190 192 235 Average Speed 246 | 150 170 366 320 320 240 240 240 240 353 190 191 204 236 Slowest Speed 1900 | 160 480 480 320 320 240 240 320 240 1900 190 192 235 465 Overloaded Moves . | . . . . . . . . . . . . . . Propulsion Burnouts . | . . . . . . . . . . . . . . Robots Hopped . | . . . . . . . . . . . . . . Cave-ins Triggered 1 | . . . . . . . . . 1 . . . . Exploration Rate (%) 45 | 3 71 20 93 58 29 72 27 4 44 10 96 93 12 Regions Visited 13 Branch Regions 4 Pre-discovered Areas 1 | . . . 1 . . . . . . . . . . Known Exits Taken 5 | . . 1 1 . 1 . . 1 . 1 . . . Unknown Exits Taken 5 | 1 1 . . . . . 1 . . . 1 1 . Scrap Searched 6 | . . . . . . . . . . . 2 4 . Spaces Dug 4 | . . . . . . . . . 3 . . 1 . Terrain Destroyed 394 | . 64 19 24 . 34 . 76 10 52 1 41 69 4 Melee 1 | . . . . . . . . . 1 . . . . Projectile 34 | . . 1 . . . . . . 12 1 8 8 4 AOE 359 | . 64 18 24 . 34 . 76 10 39 . 33 61 . Terrain Rammed . | . . . . . . . . . . . . . . Walls Destroyed . | . . . . . . . . . . . . . . Machines Disabled . | . . . . . . . . . . . . . . Actions | -11 -10 -9 -9 -9 -8 -8 -8 -7 -7 -7 -7 -7 -7 --------- Run | Jun Mat Mat Sto Gar Mat Gar Mat Fac Gar Fac Low Low Zio Total 8187 | 60 564 434 1344 617 338 580 285 152 504 483 1249 1395 182 Wait 325 | . 2 91 43 14 19 8 . . 66 41 22 15 4 Move 6914 | 45 481 282 1107 510 283 482 243 138 338 395 1180 1310 120 Hop . | . . . . . . . . . . . . . . Pick Up 141 | 8 22 8 34 8 3 14 1 4 12 9 4 11 3 Fast Attach 20 | . . . 9 2 1 . 1 1 3 . . 3 . Attach 52 | 6 1 6 6 3 2 4 . 3 7 2 4 5 3 Detach 1 | . . . . . . . . . 1 . . . . Swap 74 | . 8 1 20 4 1 9 3 2 6 3 3 13 1 Drop 96 | . 4 . 35 7 2 12 1 1 9 8 . 13 4 Fire 538 | 1 46 45 90 67 26 49 36 3 43 25 35 25 47 Melee 12 | . . . . . . . . . 12 . . . . Ram . | . . . . . . . . . . . . . . Kick . | . . . . . . . . . . . . . . Crush 2 | . . 1 . . 1 . . . . . . . . Escape Stasis 11 | . . . . 2 . 2 . . 7 . . . . Rewire 1 | . . . . . . . . . . . 1 . . Trap . | . . . . . . . . . . . . . . Miscellaneous . | . . . . . . . . . . . . . . Route ------- -11/Junkyard -10/Materials (discovered 4 exits: *Mat x2 / [*Min x2]) -9/Materials (discovered 2 exits: Min / *Sto) -9/Storage (discovered 2 exits: *Mat / Gar) -9/Garrison (discovered 2 exits: *Mat x2) -8/Materials (discovered 2 exits: *Fac / Gar) -8/Garrison (discovered 3 exits: [*Mat x3]) -8/Materials -7/Factory -7/Garrison -7/Factory (discovered 2 exits: *Low x2) -7/Lower Caves -7/Lower Caves (discovered 2 exits: [*Fac] / [*Zio]) -7/Zion (discovered 1 exit: [*Pro]) History --------- Turn | Location | Event 9 | -11/Junkyard | Discovered new exit (range 15) 86 | -11/Junkyard | Entered Materials 308 | -10/Materials | Build established: Mutant 467 | -10/Materials | Discovered new exit (range 10) 567 | -10/Materials | Discovered new exit (range 16) 824 | -10/Materials | Discovered new exit (range 14) 959 | -10/Materials | Discovered new exit (range 15) 1070 | -10/Materials | Entered another Materials area 1070 | -9/Materials | Evolved 2 slots: Utility x1, Weapon x1 1080 | -9/Materials | Discovered new exit (range 11) 1118 | -9/Materials | Identified exit to Mines 1118 | -9/Materials | Identified exit to Storage 1625 | -9/Materials | Build established: Skirmisher 1780 | -9/Materials | Repaired Lgt. Treads 2360 | -9/Materials | Entered Storage 2886 | -9/Storage | Repaired Lgt. Treads 2945 | -9/Storage | Build established: Gunner 3716 | -9/Storage | Learned location of Armory (-3) 4376 | -9/Storage | Discovered new exit (range 12) 4435 | -9/Storage | Garrison activated, responded to threat 5181 | -9/Storage | Build established: Tank 6304 | -9/Storage | Identified exit to Garrison 6304 | -9/Storage | Entered Garrison 6370 | -9/Garrison | Core integrity fell below 50% 6436 | -9/Garrison | Triggered checkpoint 6480 | -9/Garrison | Garrison Relay disabled 6544 | -9/Garrison | Garrison Relay disabled 6850 | -9/Garrison | Triggered checkpoint 7013 | -9/Garrison | Triggered checkpoint 7221 | -9/Garrison | Discovered new exit (range 13) 7228 | -9/Garrison | Triggered checkpoint 7534 | -9/Garrison | Triggered checkpoint 7597 | -9/Garrison | Garrison Relay disabled 7622 | -9/Garrison | Triggered checkpoint 7906 | -9/Garrison | Triggered checkpoint 7942 | -9/Garrison | Triggered checkpoint 8000 | -9/Garrison | Triggered checkpoint 8050 | -9/Garrison | Garrison Relay disabled 8111 | -9/Garrison | Discovered new exit (range 14) 8159 | -9/Garrison | Entered Materials 8159 | -8/Materials | Evolved 2 slots: Propulsion x2 8473 | -8/Materials | Build established: Scavenger-Tank 8507 | -8/Materials | Central database locked down 8559 | -8/Materials | First assault squad dispatched 8689 | -8/Materials | Repaired Lgt. Treads 8897 | -8/Materials | Discovered new exit (range 15) 8909 | -8/Materials | Garrison activated, responded to threat 8947 | -8/Materials | Identified exit to Garrison 8947 | -8/Materials | Entered Garrison 9105 | -8/Garrison | Rescued a captive Derelict 9115 | -8/Garrison | Rescued a captive Derelict 9155 | -8/Garrison | Garrison Relay disabled 9278 | -8/Garrison | Triggered checkpoint 9454 | -8/Garrison | Triggered checkpoint 9522 | -8/Garrison | Installed Relay Interface Framework 9551 | -8/Garrison | Garrison Relay disabled 9849 | -8/Garrison | Build established: Scavenger-Mutant 9888 | -8/Garrison | Discovered new exit (range 14) 9967 | -8/Garrison | Discovered new exit (range 14) 9967 | -8/Garrison | Discovered new exit (range 55) 9967 | -8/Garrison | Discovered new exit (range 66) 10240 | -8/Garrison | Garrison Relay disabled 10294 | -8/Garrison | Entered Materials 10694 | -8/Materials | First assault squad dispatched 10745 | -8/Materials | Discovered new exit (range 16) 10818 | -8/Materials | Destroyed 10 combat bots 10828 | -8/Materials | Lost 4 parts (2n1u1w) 10994 | -8/Materials | Entered Factory 10994 | -7/Factory | Evolved 2 slots: Utility x2 11348 | -7/Factory | Identified exit to Garrison 11348 | -7/Factory | Entered Garrison 11470 | -7/Garrison | Triggered checkpoint 11526 | -7/Garrison | Garrison Relay disabled 11676 | -7/Garrison | Triggered checkpoint 11879 | -7/Garrison | Lost 3 parts (1p1n1u) 11900 | -7/Garrison | Triggered checkpoint 12015 | -7/Garrison | Build established: Bothacker-Tank 12118 | -7/Garrison | Discovered new exit (range 12) 12620 | -7/Garrison | Build established: Bothacker-Mutant 12739 | -7/Garrison | Crushed by falling debris 12747 | -7/Garrison | Expanded RIF knowledge: Structural Interface 12811 | -7/Garrison | Entered Factory 13019 | -7/Factory | Identified exit to Lower Caves 13119 | -7/Factory | Build established: Scavenger-Tank 13698 | -7/Factory | Entered Lower Caves 14034 | -7/Lower Caves | Build established: Scavenger-Mutant 14395 | -7/Lower Caves | Build established: Scavenger-Tank 14398 | -7/Lower Caves | Learned location of 1 exit from Factory 14525 | -7/Lower Caves | Learned Factory stockpile data 14785 | -7/Lower Caves | Attacked by a delusional Derelict stockpiling Unaware 14785 | -7/Lower Caves | Core integrity fell below 50% 15105 | -7/Lower Caves | Build established: Scavenger-Mutant 15182 | -7/Lower Caves | Discovered new exit (range 14) 15642 | -7/Lower Caves | Attracted the attention of an 0b10 checkpoint 16085 | -7/Lower Caves | Entered another Lower Caves area 16085 | -7/Lower Caves | Accompanied by 3 allies 16086 | -7/Lower Caves | Encountered a Warlord checkpoint 16511 | -7/Lower Caves | Discovered new exit (range 14) 17025 | -7/Lower Caves | Attracted the attention of an 0b10 checkpoint 17069 | -7/Lower Caves | Ambushed by wild Derelicts 17974 | -7/Lower Caves | Discovered new exit (range 7) 18895 | -7/Lower Caves | Entered Zion 18982 | -7/Zion | Gained Derelict followers 19013 | -7/Zion | Discovered new exit (range 14) 19218 | -7/Zion | RIF detected upon attempting to enter Zion 19218 | -7/Zion | Attacked by Zionites 19219 | -7/Zion | Spotted 1N-070(B) 19219 | -7/Zion | Spotted 2R-8ZP(B) 19258 | -7/Zion | Destroyed 1N-070(B) 19300 | -7/Zion | Destroyed 2R-8ZP(B) 19306 | -7/Zion | Core integrity fell below 20% 19316 | -7/Zion | 99-TNT came to Zion's defense 19320 | -7/Zion | Destroyed by 99-TNT with 99-TNT's Nukerbomber Last Messages --------------- 19298_ Extracted 19 energy. 19298_ VN-58D(z) destroyed. 19300_ 2R-8ZP(B) destroyed. 19301_ Extracted 19 energy. 19303_ Critical hit (Burn: +37). 19303_ YE-1AJ(z) knocked back. 19304_ Extracted 6 energy. 19306_ Slug penetrates Wall. 19307_ YE-1AJ(z) overheating. 19309_ Slug penetrates YE-1AJ(z). 19309_ YE-1AJ(z) suffers critical hit (Blast). 19309_ YE-1AJ(z) destroyed. 19312_ Acquired Hcp. Battery. 19316_ 99-TNT: "A little bot told me Zion's under atttack, is this your doing?!" 19316_ Plasma Cannon destroyed. 19316_ Imp. Cooling System destroyed. 19318_ Adv. Treads destroyed. 19318_ Enh. Gauss Cannon destroyed. 19318_ Lgt. Nuclear Core destroyed. Map ----- +----------------------------------------------------+ | ?????????????????????????????????????????????????? | | ?????????????????????????????????????????????????? | | ?????????????????????????????????????????????????? | | ?????????????????????????????????????????????????? | | ?????????????????????????????????????????????????? | | ?????????????????????????????????????????????????? | | ?????????????????????????????????????????????????? | | ?????????????????????????????????????????????????? | | ??????????????????????????????????????????????#### | | ??????????????????????????????????????????????#" | | ?????????????????????????????????????????????## | | ?????????????????????????????????????????????# | | ?????????????????????????????????????????????#### | | ?????????????????????????????????????????????### " | | ???????????????????????????????????????????###"" # | | ?????????????????????????????????????????### | | ?????????????????????????????????????????# | | ??????????????????####???????????????????## ## | | ???????????????#?## ###?????????????????###?# | | ???????????????#"# ########?????????????# | | ????????????????# #????????????## | | ????????????????# ###??????????## | | ????????????????# "#?????????## | | ????????????????# ######????# | | ?????????? " # ;;;; ##??## | | ????????????"" @ ;### ## | | ?????????? d ### | | ?????????? "# ;;#### ### | | ????????????????## "###??## | | ?????????????????## " """#?????## | | ?????????????????#; "#######;####??????# | | ?????????????????#####???????##?????????###### | | ?????????????????????????????????????????????#### | | ????????????????????????????????????????????????## | | ???????????????????????????????????????????????### | | ???????????????????????????????????????????????# | | ???????????????????????????????????????????????# | | ???????????????????????????????????????????????### | | ?????????????????????????????????????????????????# | | ?????????????????????????????????????????????????? | | ?????????????????????????????????????????????????? | | ?????????????????????????????????????????????????? | | ?????????????????????????????????????????????????? | | ?????????????????????????????????????????????????? | | ?????????????????????????????????????????????????? | | ?????????????????????????????????????????????????? | | ?????????????????????????????????????????????????# | | ?????????????????????????????????????????????????# | | ?????????????????????????????????????????????????# | | ?????????????????????????????????????????????????# | +----------------------------------------------------+ Best States ------------- Heat Dissipation 88 Energy Generation 15 Energy Capacity 280 Matter Stores 300 Matter Capacity 300 Sight Range 16 Terrain Scan Density 10 Armor Coverage 300 Evasion (%) 40 Targeting Accuracy 6 Recoil Reduction 4 Kinecelleration 30 Relay Coupler Types 1 Relay Coupler Value 28 Item Schematics ----------------- None Robot Schematics ------------------ None Fabricated ------------ Nothing Alien Tech Used ----------------- None Achievements -------------- None Challenges ------------ None Game ------ Seed ProcessingLightBay Manual? 0 Play Time 01:15:49 Cumulative 103.7 hours Start 2023.10.15 @ 19:51:13 End 2023.10.16 @ 18:14:29 Sessions 4 Manual Loads 0 Difficulty Rogue Special Mode None Game No. 105 Rogue 69 Adventurer 36 Explorer 0 Win Type - Total 7 Types 2/0/5/0/0/0/0/0/0 Lore% 50 Gallery% 72 Achievement% 61 Wizard Run 0 Options --------- ASCII 0 Keyboard 0 Movement Mouse Keybinds 0 Fullscreen 1 Font 18/SmallcapsGlow Map View 76x50 Tactical HUD 1 Map Filters NONE Filters NONE Steam 1 RUN: 74db984e-1288-4aeb-924a-d6e6f82c8fae